bitfinex/quotes_SOLUSD_20241020
["timestamp","ask_amount","ask_price","bid_price","bid_amount"]
[1729396944096,12.2684,158.89,158.83,5.6661]
[1729396946080,20.8308,158.91,158.85,5.6654]
[1729396948008,15.1669,158.91,158.87,5.6649]
[1729396948896,20.8304,158.91,158.87,5.6649]
[1729396951009,15.1669,158.91,158.87,5.6646]
[1729396951182,15.1669,158.91,158.86,14.1626]
[1729396951381,15.1669,158.91,158.87,5.665]
[1729396951982,21.7026,158.95,158.84,20.0]
[1729396952312,16.0403,158.95,158.91,5.6632]
[1729396967891,21.7024,158.95,158.91,5.6632]
[1729396968519,21.7024,158.95,158.9,19.8234]
[1729396970000,21.60689783,158.95,158.9,19.8234]
[1729396971925,15.94479783,158.95,158.86,28.3268]
[1729396972107,15.94479783,158.95,158.91,5.6633]
[1729396973195,21.60699783,158.95,158.91,5.6633]
[1729396973398,21.51149566,158.95,158.91,5.6633]
[1729396975326,21.51149566,158.95,158.9,5.6638]
[1729396976814,21.42661039,158.95,158.9,5.6638]
[1729396980216,21.34172512,158.95,158.9,5.6638]
[1729396982316,15.67952512,158.95,158.89,14.1607]
[1729396982512,5.6625,158.94,158.89,19.8249]
[1729396982902,15.67952512,158.95,158.89,14.1607]
[1729396983101,15.67952512,158.95,158.84,23.0727]
[1729396983102,15.67952512,158.95,158.87,5.6646]
[1729396983304,15.67952512,158.95,158.86,14.163]
[1729396983305,6.032,158.93,158.86,19.8283]
[1729396983830,5.94711473,158.93,158.86,19.8283]
[1729396984117,5.6632,158.92,158.86,19.8283]
[1729396984723,5.94711473,158.93,158.86,19.8283]
[1729396984905,16.4265,158.91,158.8,3.0727]
[1729396985223,5.6649,158.88,158.82,5.6664]
[1729396986804,5.665,158.87,158.82,5.6664]
[1729396992112,6.032,158.88,158.81,14.1678]
[1729396992433,11.6969,158.88,158.81,14.1678]
[1729396992629,5.6651,158.87,158.82,5.6667]
[1729397001713,5.6639,158.9,158.85,5.6656]
[1729397001915,16.4265,158.91,158.79,8.84447492]
[1729397001916,16.4265,158.91,158.8,20.0]
[1729397002115,11.9701,158.92,158.9,5.6638]
[1729397002116,6.3069,158.92,158.9,5.6638]
[1729397002335,20.8476,158.95,158.9,5.6638]
[1729397002639,5.6625,158.94,158.89,5.6642]
[1729397003525,5.6634,158.92,158.88,14.161]
[1729397006337,5.6636,158.91,158.85,19.8294]
[1729397012054,12.1845,158.91,158.85,19.8294]
[1729397013252,6.5209,158.91,158.81,28.3357]
[1729397013428,21.2963,158.89,158.82,14.1667]
[1729397013629,5.6649,158.88,158.83,5.6661]
[1729397017123,5.665,158.87,158.82,14.1667]
[1729397017825,5.665,158.87,158.82,19.8334]
[1729397023636,21.2962,158.89,158.84,5.666]
[1729397024147,15.6317,158.89,158.85,5.6656]
[1729397025152,21.296,158.89,158.85,5.6656]
[1729397028363,6.5209,158.91,158.88,5.6645]
[1729397028533,6.5209,158.91,158.87,5.6649]
[1729397063679,5.6632,158.92,158.87,5.6649]
[1729397063895,15.6317,158.93,158.81,31.88481246]
[1729397064081,6.6499,158.95,158.86,20.0]
[1729397064257,21.3197,158.97,158.92,5.6628]
[1729397064258,15.658,158.97,158.92,5.6628]
[1729397064456,15.658,158.97,158.91,14.1588]
[1729397064457,21.3197,158.97,158.91,19.8223]
[1729397064659,5.6618,158.96,158.91,19.8223]
[1729397067560,5.53592675,158.96,158.91,19.8223]
[1729397067979,5.6618,158.96,158.91,14.1588]
[1729397069075,15.658,158.97,158.9,5.6636]
[1729397069262,5.6625,158.94,158.89,5.6642]
[1729397072261,5.6625,158.94,158.88,14.1614]
[1729397072262,23.776884,158.96,158.88,14.1614]
[1729397072479,5.6631,158.93,158.88,19.826]
[1729397072983,6.1387,158.95,158.88,19.826]
[1729397072984,6.1387,158.95,158.88,14.1614]
[1729397073190,21.6089,158.92,158.88,14.1614]
[1729397082390,15.9457,158.92,158.85,14.1641]
[1729397082563,5.6643,158.89,158.85,14.1641]
[1729397086576,5.6646,158.88,158.84,14.50840796]
[1729397091180,5.6651,158.87,158.84,8.84240796]
[1729397092506,5.6651,158.87,158.82,19.8331]
[1729397095297,5.6651,158.87,158.83,5.6663]
[1729397099317,5.6651,158.87,158.82,19.8334]
[1729397099788,5.6663,158.84,158.79,5.6676]
[1729397099990,5.6663,158.84,158.78,23.01537035]
[1729397099991,15.0337,158.88,158.8,5.6674]
[1729397100391,5.6658,158.85,158.8,5.6674]
[1729397101292,5.666,158.85,158.79,19.8374]
[1729397101812,23.776884,158.87,158.79,19.8374]
[1729397102000,5.6659,158.85,158.79,19.8374]
[1729397103220,5.6659,158.85,158.79,14.1696]
[1729397103514,5.6659,158.85,158.8,5.6674]
[1729397112517,5.6661,158.84,158.79,19.8373]
[1729397113933,5.6665,158.83,158.79,14.1696]
[1729397114220,21.3195,158.83,158.79,14.1696]
[1729397119022,15.653,158.83,158.79,14.1696]
[1729397119211,15.653,158.83,158.8,6.2971]
[1729397119634,21.9491,158.83,158.79,20.4671]
[1729397119808,15.653,158.83,158.79,20.4671]
[1729397120407,15.653,158.83,158.75,8.84726462]
[1729397120737,15.653,158.83,158.79,6.2974]
[1729397144038,6.2957,158.84,158.79,22.0413]
[1729397151531,6.4939,158.85,158.76,20.0]
[1729397151752,6.4939,158.85,158.8,6.2968]
[1729397163164,6.4939,158.85,158.81,6.2967]
[1729397163661,15.4034,158.87,158.78,20.0]
[1729397163959,12.7535,158.89,158.84,6.2955]
[1729397165048,12.7535,158.89,158.78,20.0]
[1729397165247,6.4598,158.89,158.85,6.2952]
[1729397166557,29.24214627,158.91,158.86,6.2948]
[1729397183188,6.4598,158.93,158.9,6.2932]
[1729397183473,6.4598,158.93,158.9,15.7329]
[1729397183652,6.4598,158.93,158.9,22.0261]
[1729397184168,6.4598,158.93,158.9,15.7329]
[1729397188348,16.157,158.95,158.9,15.7329]
[1729397188664,16.157,158.95,158.84,0.9646]
[1729397188665,16.157,158.95,158.92,6.2924]
[1729397190058,12.3929,158.97,158.92,6.2924]
[1729397192782,6.2909,158.96,158.91,22.0246]
[1729397201388,16.1979,158.95,158.89,6.2934]
[1729397202490,6.2919,158.94,158.89,6.2934]
[1729397204870,6.2921,158.93,158.88,6.294]
[1729397209971,6.19662317,158.93,158.88,6.294]
[1729397213880,6.10114634,158.93,158.88,6.294]
[1729397217097,16.1979,158.95,158.88,6.294]
[1729397217398,23.69199873,158.93,158.87,15.7354]
[1729397217784,6.2924,158.92,158.87,15.7354]
[1729397218584,6.2928,158.91,158.87,15.7354]
[1729397221402,6.19729783,158.91,158.87,15.7354]
[1729397224784,23.69199873,158.93,158.84,20.0]
[1729397225109,6.2933,158.9,158.85,6.2951]
[1729397228703,6.20841473,158.9,158.85,6.2951]
[1729397239509,6.20841473,158.9,158.83,31.4801]
[1729397239816,15.3893,158.91,158.87,6.2942]
[1729397240794,21.6821,158.91,158.87,6.2942]
[1729397279024,6.2923,158.93,158.84,20.0]
[1729397279217,12.3557,158.94,158.89,6.2934]
[1729397279918,6.064,158.94,158.9,6.293]
[1729397281152,15.1357,158.95,158.91,6.2927]
[1729397282617,15.1357,158.95,158.92,6.2924]
[1729397283126,6.70080973,158.96,158.92,6.2924]
[1729397283324,6.70080973,158.96,158.93,6.2918]
[1729397286435,6.70080973,158.96,158.91,6.2925]
[1729397286436,6.2913,158.95,158.91,6.2925]
[1729397287723,6.2913,158.95,158.89,22.0273]
[1729397287918,21.8528,158.98,158.89,22.0273]
[1729397287919,23.876884,158.97,158.89,22.0273]
[1729397288137,6.292,158.94,158.89,22.0273]
[1729397288643,23.876884,158.97,158.83,31.4801]
[1729397288644,12.9096,158.92,158.87,6.2942]
[1729397292749,6.2931,158.91,158.86,22.0315]
[1729397295630,6.2935,158.9,158.86,15.7367]
[1729397300050,21.9147,158.88,158.83,22.0354]
[1729397302052,15.6206,158.88,158.82,8.84342402]
[1729397302391,6.2944,158.87,158.82,15.13962402]
[1729397303328,6.2944,158.87,158.83,6.296]
[1729397306637,21.9147,158.88,158.83,6.296]
[1729397332385,6.295,158.86,158.82,8.84342402]
[1729397332872,6.295,158.86,158.82,15.13982402]
[1729397335980,6.2953,158.85,158.81,15.7414]
[1729397337481,6.2956,158.84,158.8,6.2968]
[1729397338084,43.876884,158.87,158.76,31.493]
[1729397338085,6.2951,158.86,158.77,22.0444]
[1729397338280,6.2951,158.86,158.76,31.493]
[1729397338476,6.2951,158.86,158.8,6.2968]
[1729397341790,6.2951,158.86,158.81,6.2968]
[1729397343571,43.776884,158.87,158.74,3.2576]
[1729397343771,43.776884,158.87,158.82,6.2961]
[1729397344798,50.071384,158.87,158.82,6.2961]
[1729397347590,50.071384,158.87,158.83,6.2958]
[1729397347591,20.0,158.87,158.83,6.2958]
[1729397347889,28.4462,158.88,158.83,6.2958]
[1729397351383,6.2944,158.87,158.83,6.2958]
[1729397361904,6.2944,158.87,158.82,15.7408]
[1729397362201,6.2944,158.87,158.82,22.0371]
[1729397382993,6.2952,158.86,158.82,15.7408]
[1729397395427,6.2952,158.85,158.81,6.2967]
[1729397402931,6.296,158.83,158.79,22.0411]
[1729397403138,52.736084,158.84,158.79,22.0411]
[1729397404349,46.440484,158.84,158.8,6.2968]
[1729397404536,22.6636,158.84,158.8,6.2968]
[1729397407645,28.9595,158.84,158.79,22.0412]
[1729397409920,22.6636,158.84,158.79,15.7436]
[1729397410144,16.537,158.84,158.81,6.2968]
[1729397411560,6.295,158.86,158.81,6.2968]
[1729397411841,27.9923,158.88,158.82,6.2961]
[1729397414322,0.1,158.86,158.78,22.0429]
[1729397414523,30.072884,158.83,158.78,22.0429]
[1729397417521,21.8679,158.82,158.78,15.7449]
[1729397417726,6.2969,158.81,158.76,6.2987]
[1729397419958,6.2969,158.81,158.77,6.2984]
[1729397420957,15.5714,158.82,158.77,6.2984]
[1729397421155,21.8679,158.82,158.77,6.2984]
[1729397422056,21.8679,158.82,158.78,6.2978]
[1729397422057,15.5714,158.82,158.78,6.2978]
[1729397430567,21.8678,158.82,158.78,6.2978]
[1729397446473,15.5714,158.82,158.78,6.2978]
[1729397468579,21.8678,158.82,158.78,6.2978]
[1729397469489,21.8678,158.82,158.77,15.7457]
[1729397469490,30.073784,158.81,158.77,15.7457]
[1729397474589,30.073784,158.81,158.69,1.0951671]
[1729397474590,6.2984,158.77,158.69,1.0951671]
[1729397474800,6.2984,158.77,158.72,6.3003]
[1729397475481,6.5529,158.79,158.71,15.752]
[1729397475697,6.5529,158.79,158.74,6.2992]
[1729397475698,23.776884,158.78,158.74,6.2992]
[1729397484811,30.074884,158.78,158.74,6.2992]
[1729397486710,30.074884,158.78,158.73,15.7494]
[1729397486918,30.074884,158.78,158.73,22.0493]
[1729397497419,6.2986,158.77,158.73,15.7494]
[1729397501321,38.887184,158.78,158.67,41.32729505]
[1729397501526,6.2993,158.75,158.7,22.0537]
[1729397501717,6.2993,158.75,158.71,6.3007]
[1729397502503,6.2989,158.76,158.71,6.3007]
[1729397521927,20.1,158.77,158.67,24.60739505]
[1729397522113,6.2998,158.74,158.68,6.3019]
[1729397522630,6.2998,158.74,158.69,6.3014]
[1729397533935,26.1721,158.75,158.67,8.85189505]
[1729397534246,6.2996,158.74,158.7,15.7528]
[1729397539357,6.3,158.73,158.68,6.3017]
[1729397539655,21.3443,158.73,158.68,6.3017]
[1729397544558,15.0443,158.73,158.7,6.3008]
[1729397544755,21.3444,158.73,158.68,6.3016]
[1729397551067,23.776884,158.72,158.67,15.7559]
[1729397551369,6.3008,158.71,158.67,15.7559]
[1729397551545,30.077284,158.72,158.67,22.0581]
[1729397552170,23.776884,158.72,158.67,15.7559]
[1729397552373,23.776884,158.7,158.67,15.7559]
[1729397553059,15.0443,158.73,158.67,15.7559]
[1729397553265,6.3004,158.72,158.67,22.058]
[1729397558576,15.0443,158.73,158.67,15.7559]
[1729397558756,21.3444,158.73,158.68,6.3016]
[1729397577890,15.0443,158.73,158.69,6.3014]
[1729397584407,26.1721,158.75,158.64,0.1]
[1729397584408,6.1721,158.75,158.64,0.1]
[1729397584607,6.1721,158.75,158.64,43.876884]
[1729397585501,6.1721,158.75,158.71,6.3005]
[1729397593518,12.4713,158.75,158.71,6.3005]
[1729397596511,23.776884,158.74,158.67,15.7557]
[1729397596703,6.3003,158.73,158.68,6.3019]
[1729397597316,6.3007,158.72,158.66,6.3024]
[1729397597517,6.3007,158.72,158.63,7.89356027]
[1729397597708,15.6756,158.73,158.68,6.3018]
[1729397597709,21.9756,158.73,158.68,6.3018]
[1729397601398,21.9756,158.73,158.63,7.99356027]
[1729397601599,21.9756,158.73,158.69,6.3015]
[1729397613213,21.9756,158.73,158.7,6.3009]
[1729397613214,15.6756,158.73,158.7,6.3009]
[1729397650046,6.1721,158.75,158.66,31.5139]
[1729397650256,22.4679,158.77,158.72,6.3]
[1729397651056,22.4679,158.77,158.74,6.2993]
[1729397651057,16.1695,158.77,158.74,6.2993]
[1729397651452,6.0441,158.79,158.75,6.2989]
[1729397651641,6.0441,158.79,158.76,6.2987]
[1729397663175,22.472,158.81,158.76,6.2987]
[1729397668578,16.1752,158.81,158.77,6.298]
[1729397668753,16.1752,158.81,158.78,6.2979]
[1729397676881,16.1752,158.81,158.79,6.2972]
[1729397677878,16.1752,158.81,158.78,15.7445]
[1729397678080,16.1752,158.81,158.78,22.0424]
[1729397680096,6.3291,158.83,158.8,6.2971]
[1729397680271,15.5199,158.85,158.81,6.2966]
[1729397680889,15.5199,158.85,158.75,0.1]
[1729397681063,6.509,158.87,158.84,6.2956]
[1729397681266,6.509,158.87,158.78,31.4898]
[1729397681483,6.509,158.87,158.83,6.2959]
[1729397687491,12.8035,158.87,158.83,6.2959]
[1729397688293,12.8035,158.87,158.82,15.7409]
[1729397689497,12.8035,158.87,158.82,22.0372]
[1729397689871,12.8035,158.87,158.83,6.2957]
[1729397689872,6.509,158.87,158.83,6.2957]
[1729397710921,6.509,158.87,158.78,38.04219539]
[1729397710922,6.509,158.87,158.78,6.55239539]
[1729397711228,21.8136,158.89,158.84,6.2954]
[1729397716040,21.8136,158.89,158.84,6.2955]
[1729397718726,21.8136,158.89,158.84,6.2956]
[1729397720427,21.8136,158.89,158.85,6.2951]
[1729397725739,15.5199,158.89,158.86,6.2945]
[1729397726044,0.1,158.96,158.81,47.2261]
[1729397726045,16.1006,158.93,158.88,6.2937]
[1729397726246,16.1006,158.93,158.89,6.2933]
[1729397726540,6.2924,158.92,158.87,6.2943]
[1729397728718,6.2934,158.9,158.85,6.2952]
[1729397728918,6.2932,158.9,158.84,22.0346]
[1729397733247,6.2939,158.89,158.84,22.0346]
[1729397742866,6.2939,158.89,158.85,6.2952]
[1729397750345,30.070184,158.9,158.85,6.2952]
[1729397752941,30.070184,158.9,158.8,31.4861]
[1729397753142,6.2933,158.9,158.86,6.2947]
[1729397759444,39.532284,158.89,158.85,15.7377]
[1729397759658,6.294,158.88,158.83,6.2956]
[1729397760972,39.532284,158.89,158.83,6.2956]
[1729397761172,39.532284,158.89,158.8,6.2969]
[1729397761173,6.2955,158.85,158.8,6.2969]
[1729397761646,6.2955,158.85,158.81,6.2968]
[1729397764254,30.071784,158.86,158.81,6.2968]
[1729397765569,23.776884,158.86,158.81,6.2966]
[1729397765748,12.7851,158.87,158.82,6.2963]
[1729397766371,6.4906,158.87,158.83,6.2956]
[1729397766671,15.7554,158.89,158.85,6.2949]
[1729397766875,6.4906,158.91,158.8,1.0646]
[1729397767050,6.4906,158.91,158.87,6.2941]
[1729397778864,6.2925,158.92,158.87,6.2941]
[1729397798182,6.2934,158.9,158.86,15.7369]
[1729397801479,23.776884,158.91,158.83,15.74]
[1729397801684,6.2939,158.89,158.8,0.9646]
[1729397801997,6.2939,158.89,158.85,6.2952]
[1729397802573,30.347984,158.92,158.8,0.9646]
[1729397802813,36.640484,158.92,158.87,6.2942]
[1729397829420,6.5711,158.92,158.81,3.2576]
[1729397829600,6.5711,158.92,158.88,6.294]
[1729397830696,15.7554,158.93,158.89,6.2935]
[1729397831112,15.7554,158.93,158.9,6.2931]
[1729397831420,6.2913,158.95,158.9,6.2931]
[1729397834705,12.686,158.96,158.91,6.2928]
[1729397842896,6.3951,158.96,158.92,6.2924]
[1729397844826,22.7288,158.97,158.87,31.4722]
[1729397844827,16.4383,158.97,158.88,31.4698]
[1729397845128,9.04543724,158.98,158.95,6.2912]
[1729397845304,9.04543724,158.98,158.94,15.7291]
[1729397845505,9.04543724,158.98,158.94,22.0207]
[1729397847507,6.2897,158.99,158.94,22.0207]
[1729397850705,6.2897,158.99,158.88,31.5698]
[1729397850706,23.776884,158.99,158.91,22.0244]
[1729397850915,15.1051,158.97,158.91,15.7319]
[1729397851113,21.3956,158.97,158.92,6.2923]
[1729397855026,15.1051,158.97,158.92,15.7307]
[1729397855238,21.3956,158.97,158.92,22.023]
[1729397876858,15.1051,158.97,158.93,6.2917]
[1729397877158,15.1051,158.97,158.93,12.83729631]
[1729397877539,15.1051,158.97,158.93,6.2917]
[1729397882763,6.2909,158.96,158.92,22.0231]
[1729397883063,6.2909,158.96,158.92,15.7307]
[1729397883233,6.2918,158.94,158.89,22.0272]
[1729397883529,6.2918,158.94,158.9,6.2932]
[1729397883733,12.8631,158.95,158.9,6.2932]
[1729397886248,12.8631,158.95,158.89,15.7339]
[1729397886249,6.2921,158.93,158.89,15.7339]
[1729397887046,6.5718,158.95,158.86,15.7369]
[1729397887347,6.2927,158.92,158.86,22.0313]
[1729397888546,22.2619,158.92,158.86,22.0313]
[1729397889752,22.2619,158.92,158.87,6.2944]
[1729397892457,22.2619,158.92,158.83,22.0355]
[1729397892458,6.2939,158.89,158.83,22.0355]
[1729397894361,6.0227,158.9,158.83,22.0355]
[1729397894565,6.2944,158.88,158.83,22.0355]
[1729397895166,6.294,158.89,158.83,22.0355]
[1729397898984,6.2936,158.89,158.83,22.0355]
[1729397899566,6.2936,158.89,158.84,6.2954]
[1729397899763,6.0227,158.9,158.81,6.55106617]
[1729397900072,6.293,158.91,158.86,6.2945]
[1729397903673,15.9692,158.92,158.87,6.294]
[1729397904681,15.9692,158.92,158.88,6.2937]
[1729397922995,15.06979158,158.94,158.84,75.255084]
[1729397923212,6.2915,158.95,158.91,6.2928]
[1729397923701,21.6991,158.96,158.85,0.1]
[1729397925408,21.6991,158.96,158.91,6.2925]
[1729397926088,15.4082,158.96,158.85,1.1646]
[1729397926275,21.6993,158.96,158.9,6.2929]
[1729397931003,21.6993,158.96,158.87,51.4722]
[1729397931198,21.6993,158.96,158.91,6.2926]
[1729397939306,15.4082,158.96,158.92,6.2924]
[1729397944297,15.4082,158.96,158.87,51.6722]
[1729397944617,6.0771,158.98,158.94,6.2916]
[1729397945503,12.3673,158.98,158.93,6.2919]
[1729397945906,12.3673,158.98,158.92,15.7302]
[1729397946118,6.0771,158.98,158.94,6.2913]
[1729397947504,6.0771,158.98,158.95,6.2912]
[1729397949116,15.7693,159.0,158.95,6.2912]
[1729397949300,15.7693,159.0,158.96,6.2907]
[1729397950521,15.7693,159.0,158.92,53.4858]
[1729397950727,15.7693,159.0,158.96,6.2907]
[1729397952509,22.0586,159.0,158.96,6.2907]
[1729397957231,6.2903,158.98,158.93,6.292]
[1729397957622,6.2903,158.98,158.94,6.2916]
[1729397959317,6.2897,158.99,158.94,6.2916]
[1729397963826,15.7693,159.0,158.92,23.776884]
[1729397964026,15.7693,159.0,158.95,6.2909]
[1729397964027,22.0587,159.0,158.95,6.2909]
[1729397967431,6.29,158.99,158.94,22.0202]
[1729397968345,22.0589,159.0,158.95,6.2911]
[1729397968644,6.2897,158.99,158.95,6.2911]
[1729397973652,15.7693,159.0,158.96,6.2905]
[1729397975351,15.7693,159.0,158.93,20.0]
[1729397975549,15.7693,159.0,158.96,15.7271]
[1729397975842,6.4433692,159.02,158.98,6.2898]
[1729397976046,6.4433692,159.02,158.94,39.606084]
[1729397976047,6.4433692,159.02,158.99,6.2896]
[1729397977237,6.4433692,159.02,158.97,15.7259]
[1729397977238,0.2443692,159.02,159.01,6.2889]
[1729397977749,0.2443692,159.02,159.0,22.0123]
[1729397978147,0.2443692,159.02,159.0,15.7231]
[1729397978650,0.2443692,159.02,159.0,22.0123]
[1729397980828,0.2443692,159.02,159.0,15.7231]
[1729397981649,0.2443692,159.02,159.0,22.0123]
[1729397982444,0.2443692,159.02,159.0,15.7231]
[1729397987329,0.2443692,159.02,159.01,6.2889]
[1729397987565,0.2443692,159.02,159.0,22.0123]
[1729397988434,0.2443692,159.02,159.0,15.7231]
[1729397989362,0.2443692,159.02,159.0,22.0123]
[1729397994563,0.2443692,159.02,159.01,6.2889]
[1729398009364,0.2443692,159.02,159.0,15.7231]
[1729398010774,21.9289,159.04,159.0,15.7231]
[1729398011082,21.6732692,159.04,159.0,15.7231]
[1729398011471,15.3854692,159.04,159.0,22.0121]
[1729398015174,6.287,159.06,158.99,23.776884]
[1729398015359,6.287,159.06,159.02,6.2883]
[1729398015761,12.5021,159.07,159.01,8.85073205]
[1729398015982,12.5021,159.07,159.02,6.2885]
[1729398016160,6.2156,159.07,159.01,8.85073205]
[1729398016362,6.2156,159.07,159.02,22.0097]
[1729398017255,6.2156,159.07,159.03,6.2881]
[1729398017461,9.0238,159.09,159.03,6.2881]
[1729398018074,9.0238,159.09,159.01,8.85073205]
[1729398018279,9.0238,159.09,159.03,15.7203]
[1729398019282,6.2864,159.08,159.03,22.0084]
[1729398021082,15.58755734,159.09,159.03,22.0084]
[1729398021268,6.2865,159.07,159.03,22.0084]
[1729398022185,6.2877,159.04,159.0,6.289]
[1729398022391,31.30275734,159.09,158.99,23.776884]
[1729398022577,6.2867,159.07,159.02,6.2884]
[1729398022790,31.30275734,159.09,159.01,22.011]
[1729398023003,6.2869,159.07,159.01,22.011]
[1729398023366,15.58755734,159.09,159.01,0.1]
[1729398023574,15.58755734,159.09,159.04,6.2874]
[1729398023575,9.0238,159.09,159.04,6.2874]
[1729398024067,9.0238,159.09,159.05,6.2873]
[1729398026391,6.3533,159.11,159.02,0.1]
[1729398026571,12.6386,159.11,159.05,6.2869]
[1729398026892,12.6386,159.11,159.06,6.2868]
[1729398027087,6.3533,159.11,159.05,15.7176]
[1729398027394,6.2858,159.09,159.05,15.7176]
[1729398028295,12.6386,159.11,159.05,22.0047]
[1729398029196,6.3533,159.11,159.05,22.0047]
[1729398029383,6.2854,159.1,159.05,22.0047]
[1729398030092,6.3533,159.11,159.01,23.876884]
[1729398030292,6.3533,159.11,159.03,23.776884]
[1729398030477,6.3533,159.11,159.05,22.0045]
[1729398030478,12.6383,159.11,159.05,22.0045]
[1729398031876,6.2853,159.1,159.05,22.0045]
[1729398035975,6.3533,159.11,159.01,23.876884]
[1729398036293,6.3533,159.11,159.03,31.4406]
[1729398036495,12.6385,159.11,159.06,15.7168]
[1729398037601,6.2853,159.1,159.06,15.7168]
[1729398037799,16.5221,159.13,159.06,15.7168]
[1729398038038,20.0,159.12,159.06,22.0034]
[1729398039502,6.285,159.11,159.06,22.0034]
[1729398048801,20.0,159.12,159.06,22.0034]
[1729398049000,6.2849,159.11,159.06,22.0034]
[1729398049407,6.2856,159.1,159.06,15.7168]
[1729398056516,6.2856,159.1,159.06,22.0036]
[1729398066816,6.2856,159.1,159.06,15.7168]
[1729398070126,6.2856,159.1,159.06,22.0037]
[1729398072608,6.285,159.11,159.06,22.0037]
[1729398074923,20.0,159.12,159.06,22.0037]
[1729398075128,6.2849,159.11,159.06,22.0037]
[1729398080630,20.0,159.12,159.04,31.4386]
[1729398081422,6.2851,159.11,159.07,15.7158]
[1729398084411,6.4638,159.15,159.06,23.876884]
[1729398084637,6.4638,159.15,159.11,6.2846]
[1729398085234,6.2831,159.16,159.11,6.2846]
[1729398085927,5.6556,159.14,159.06,32.60715573]
[1729398086128,5.6556,159.14,159.09,5.657]
[1729398092223,5.655,159.16,159.1,5.6566]
[1729398092424,5.6549,159.16,159.1,14.1416]
[1729398092737,5.655,159.15,159.1,19.7984]
[1729398093738,5.6552,159.15,159.1,14.1416]
[1729398094037,5.6554,159.14,159.1,14.1416]
[1729398094339,22.6702,159.17,159.09,19.7997]
[1729398094340,5.6552,159.15,159.09,19.7997]
[1729398096315,5.6547,159.16,159.11,5.6563]
[1729398096514,16.2582,159.17,159.08,0.1]
[1729398096741,16.2582,159.17,159.13,5.6557]
[1729398097111,16.2582,159.17,159.08,0.1]
[1729398097324,16.2582,159.17,159.14,5.6553]
[1729398099317,21.9126,159.17,159.13,14.139]
[1729398101125,16.2582,159.17,159.14,5.6553]
[1729398110249,0.6149578,159.18,159.14,5.6553]
[1729398111854,0.6149578,159.18,159.15,5.6549]
[1729398119839,0.6149578,159.18,159.14,5.6553]
[1729398126447,20.6149578,159.18,159.1,14.1417]
[1729398126663,20.6747,159.17,159.11,5.6563]
[1729398130866,20.6149578,159.18,159.1,14.1417]
[1729398130867,0.6149578,159.18,159.14,5.655]
[1729398143880,0.6149578,159.18,159.13,14.1387]
[1729398144072,5.6545,159.17,159.13,19.7944]
[1729398144573,6.2690578,159.18,159.13,19.7943]
[1729398147673,0.6149578,159.18,159.14,5.6551]
[1729398164378,0.6149578,159.18,159.12,19.7963]
[1729398164669,0.6149578,159.18,159.15,5.6549]
[1729398167369,0.6149578,159.18,159.14,14.1383]
[1729398167576,0.6149578,159.18,159.14,19.7935]
[1729398175798,0.6149578,159.18,159.14,14.1383]
[1729398175799,6.2692578,159.18,159.14,14.1383]
[1729398181399,6.2692578,159.18,159.14,19.7936]
[1729398187909,0.6149578,159.18,159.14,14.1383]
[1729398188134,0.6149578,159.18,159.15,5.6549]
[1729398188314,0.6149578,159.18,159.14,14.1384]
[1729398188616,6.2689578,159.18,159.14,14.1384]
[1729398191710,6.2689578,159.18,159.12,5.656]
[1729398191711,5.6544,159.17,159.12,5.656]
[1729398192689,0.6149578,159.18,159.13,5.6555]
[1729398193100,0.6149578,159.18,159.09,23.776884]